[Event "Titled Tuesday Blitz November 14 Late 2023"]
[White "Erigaisi Arjun"]
[Black "Nazari, Arad"]
[WhiteFideId "35009192"]
[BlackFideId "12577324"]
[WhiteElo "3034"]
[BlackElo "2762"]
[Result "1-0"]
[Round "3"]
[TimeControl "180+1"]
[Date "2023.11.14"]
[WhiteClock "0:01:19"]
[BlackClock "0:00:00"]
[Board "7"]

1. Nf3 {[%clk 0:03:00]}  Nf6 {[%clk 0:02:59]} 2. c4 {[%clk 0:03:00]}  g6 {[%clk 0:02:58]} 3. b3 {[%clk 0:02:58]}  Bg7 {[%clk 0:02:58]} 4. Bb2 {[%clk 0:02:58]}  O-O {[%clk 0:02:58]} 5. e3 {[%clk 0:02:58]}  c6 {[%clk 0:02:59]} 6. Be2 {[%clk 0:02:56]}  d5 {[%clk 0:02:58]} 7. O-O {[%clk 0:02:57]}  Nbd7 {[%clk 0:02:54]} 8. d4 {[%clk 0:02:55]}  Ne4 {[%clk 0:02:53]} 9. Nc3 {[%clk 0:02:54]}  Nxc3 {[%clk 0:02:53]} 10. Bxc3 {[%clk 0:02:55]}  Nf6 {[%clk 0:02:54]} 11. b4 {[%clk 0:02:53]}  Ne4 {[%clk 0:02:53]} 12. Bb2 {[%clk 0:02:53]}  a5 {[%clk 0:02:46]} 13. b5 {[%clk 0:02:53]}  dxc4 {[%clk 0:02:43]} 14. bxc6 {[%clk 0:02:52]}  b5 {[%clk 0:02:43]} 15. a4 {[%clk 0:02:51]}  c3 {[%clk 0:02:40]} 16. Bc1 {[%clk 0:02:46]}  b4 {[%clk 0:02:40]} 17. Qc2 {[%clk 0:02:46]}  Qd5 {[%clk 0:02:36]} 18. Bd3 {[%clk 0:02:41]}  Nd6 {[%clk 0:02:28]} 19. e4 {[%clk 0:02:38]}  Qxc6 {[%clk 0:02:28]} 20. e5 {[%clk 0:02:38]}  Nc4 {[%clk 0:02:20]} 21. Be4 {[%clk 0:02:32]}  Bf5 {[%clk 0:02:20]} 22. Bxf5 {[%clk 0:02:26]}  gxf5 {[%clk 0:00:37]} 23. Qxf5 {[%clk 0:02:27]}  b3 {[%clk 0:00:36]} 24. d5 {[%clk 0:02:14]}  Qg6 {[%clk 0:00:26]} 25. Qf4 {[%clk 0:02:14]}  Rfc8 {[%clk 0:00:22]} 26. Nh4 {[%clk 0:02:13]}  Qd3 {[%clk 0:00:19]} 27. Nf5 {[%clk 0:02:10]}  Nxe5 {[%clk 0:00:12]} 28. Nxg7 {[%clk 0:02:03]}  Ng6 {[%clk 0:00:11]} 29. Qh6 {[%clk 0:02:03]}  b2 {[%clk 0:00:09]} 30. Nh5 {[%clk 0:02:01]}  Qd4 {[%clk 0:00:09]} 31. Be3 {[%clk 0:01:58]}  Qh8 {[%clk 0:00:10]} 32. Rae1 {[%clk 0:01:37]}  c2 {[%clk 0:00:09]} 33. d6 {[%clk 0:01:37]}  Rab8 {[%clk 0:00:05]} 34. dxe7 {[%clk 0:01:22]}  b1=Q {[%clk 0:00:05]} 35. Bg5 {[%clk 0:01:22]}  Qxe1 {[%clk 0:00:02]} 36. Rxe1 {[%clk 0:01:20]}  Rb1 {[%clk 0:00:02]} 37. Bc1 {[%clk 0:01:19]}  Qc3 {[%clk 0:00:00]} 38. e8=Q+ {[%clk 0:01:19]} 1-0


[Site "https://www.chess.com"]

[Event "Titled Tuesday Blitz November 14 Late 2023"]
[White "Martinez Alcantara, Jose Eduardo"]
[Black "Hambleton, Aman"]
[WhiteFideId "3805662"]
[BlackFideId "2606577"]
[WhiteElo "3019"]
[BlackElo "2720"]
[Result "1-0"]
[Round "3"]
[TimeControl "180+1"]
[Date "2023.11.14"]
[WhiteClock "0:01:53"]
[BlackClock "0:00:00"]
[Board "10"]

1. e4 {[%clk 0:03:00]}  c5 {[%clk 0:02:51]} 2. Nf3 {[%clk 0:02:59]}  e6 {[%clk 0:02:50]} 3. c3 {[%clk 0:02:59]}  Nf6 {[%clk 0:02:50]} 4. Bd3 {[%clk 0:02:59]}  Nc6 {[%clk 0:02:32]} 5. Bc2 {[%clk 0:02:59]}  d6 {[%clk 0:02:24]} 6. O-O {[%clk 0:02:59]}  e5 {[%clk 0:02:24]} 7. h3 {[%clk 0:02:55]}  Be7 {[%clk 0:02:22]} 8. d4 {[%clk 0:02:55]}  exd4 {[%clk 0:02:01]} 9. cxd4 {[%clk 0:02:56]}  cxd4 {[%clk 0:02:01]} 10. Nxd4 {[%clk 0:02:57]}  Nxd4 {[%clk 0:02:01]} 11. Qxd4 {[%clk 0:02:57]}  O-O {[%clk 0:02:02]} 12. Nc3 {[%clk 0:02:57]}  Be6 {[%clk 0:02:02]} 13. Rd1 {[%clk 0:02:58]}  Nd7 {[%clk 0:01:25]} 14. Bf4 {[%clk 0:02:54]}  Ne5 {[%clk 0:00:58]} 15. Bb3 {[%clk 0:02:48]}  Bxb3 {[%clk 0:00:25]} 16. axb3 {[%clk 0:02:48]}  Nc6 {[%clk 0:00:22]} 17. Qd2 {[%clk 0:02:44]}  Qb6 {[%clk 0:00:18]} 18. Nd5 {[%clk 0:02:25]}  Qxb3 {[%clk 0:00:16]} 19. Ra3 {[%clk 0:02:26]}  Qc4 {[%clk 0:00:16]} 20. Rc1 {[%clk 0:02:26]}  Qb5 {[%clk 0:00:05]} 21. Nc7 {[%clk 0:02:17]}  Qb6 {[%clk 0:00:04]} 22. Nxa8 {[%clk 0:02:17]}  Rxa8 {[%clk 0:00:04]} 23. Be3 {[%clk 0:02:06]}  Qb5 {[%clk 0:00:02]} 24. Qd5 {[%clk 0:02:01]}  Qe2 {[%clk 0:00:02]} 25. Rb3 {[%clk 0:01:54]}  Rb8 {[%clk 0:00:00]} 26. Rxc6 {[%clk 0:01:53]} 1-0


[Site "https://www.chess.com"]

[Event "Titled Tuesday Blitz November 14 Late 2023"]
[White "Rorrer, Grayson"]
[Black "Gholami Orimi, Mahdi"]
[WhiteFideId "30944996"]
[BlackFideId "12558486"]
[WhiteElo "2710"]
[BlackElo "2958"]
[Result "1-0"]
[Round "3"]
[TimeControl "180+1"]
[Date "2023.11.14"]
[WhiteClock "0:00:14"]
[BlackClock "0:00:16"]
[Board "13"]

1. e4 {[%clk 0:03:00]}  e5 {[%clk 0:03:00]} 2. Nc3 {[%clk 0:03:00]}  Nf6 {[%clk 0:03:00]} 3. d4 {[%clk 0:03:01]}  exd4 {[%clk 0:02:59]} 4. Qxd4 {[%clk 0:03:01]}  Nc6 {[%clk 0:02:59]} 5. Qd3 {[%clk 0:03:02]}  Bb4 {[%clk 0:02:54]} 6. Bd2 {[%clk 0:03:03]}  O-O {[%clk 0:02:18]} 7. O-O-O {[%clk 0:03:00]}  Re8 {[%clk 0:02:19]} 8. Nge2 {[%clk 0:02:52]}  d6 {[%clk 0:02:13]} 9. Bg5 {[%clk 0:02:52]}  Bxc3 {[%clk 0:02:08]} 10. Nxc3 {[%clk 0:02:49]}  h6 {[%clk 0:02:08]} 11. Bh4 {[%clk 0:02:33]}  Ne5 {[%clk 0:02:08]} 12. Qd2 {[%clk 0:02:24]}  Ng6 {[%clk 0:02:07]} 13. Bxf6 {[%clk 0:02:17]}  Qxf6 {[%clk 0:02:07]} 14. Nd5 {[%clk 0:02:18]}  Qd8 {[%clk 0:02:07]} 15. Bd3 {[%clk 0:02:09]}  Be6 {[%clk 0:02:03]} 16. f4 {[%clk 0:02:07]}  c6 {[%clk 0:01:46]} 17. Nc3 {[%clk 0:01:58]}  Bg4 {[%clk 0:01:40]} 18. Rde1 {[%clk 0:01:55]}  Bd7 {[%clk 0:01:30]} 19. h3 {[%clk 0:01:18]}  b5 {[%clk 0:01:30]} 20. g4 {[%clk 0:01:15]}  b4 {[%clk 0:01:30]} 21. Ne2 {[%clk 0:01:15]}  c5 {[%clk 0:01:28]} 22. Ng3 {[%clk 0:01:11]}  Qa5 {[%clk 0:01:22]} 23. Bc4 {[%clk 0:00:48]}  Bb5 {[%clk 0:01:22]} 24. Bd5 {[%clk 0:00:44]}  c4 {[%clk 0:01:22]} 25. Bxa8 {[%clk 0:00:28]}  Qxa2 {[%clk 0:01:12]} 26. Qxb4 {[%clk 0:00:26]}  c3 {[%clk 0:01:03]} 27. bxc3 {[%clk 0:00:23]}  Ba4 {[%clk 0:01:01]} 28. Qb2 {[%clk 0:00:18]}  Qxb2+ {[%clk 0:01:01]} 29. Kxb2 {[%clk 0:00:19]}  Rxa8 {[%clk 0:01:02]} 30. Rhf1 {[%clk 0:00:16]}  a5 {[%clk 0:00:57]} 31. Nf5 {[%clk 0:00:11]}  Rb8+ {[%clk 0:00:51]} 32. Kc1 {[%clk 0:00:12]}  Rb6 {[%clk 0:00:43]} 33. Rd1 {[%clk 0:00:08]}  Rc6 {[%clk 0:00:43]} 34. Rf3 {[%clk 0:00:05]}  Rc4 {[%clk 0:00:42]} 35. Nxd6 {[%clk 0:00:05]}  Rc7 {[%clk 0:00:39]} 36. e5 {[%clk 0:00:04]}  Bc6 {[%clk 0:00:37]} 37. Rf2 {[%clk 0:00:04]}  Ba4 {[%clk 0:00:37]} 38. Rd4 {[%clk 0:00:03]}  Bd7 {[%clk 0:00:34]} 39. Rc4 {[%clk 0:00:03]}  Ra7 {[%clk 0:00:34]} 40. Re2 {[%clk 0:00:02]}  a4 {[%clk 0:00:33]} 41. f5 {[%clk 0:00:02]}  Nf8 {[%clk 0:00:27]} 42. Kb1 {[%clk 0:00:03]}  g6 {[%clk 0:00:24]} 43. Ka2 {[%clk 0:00:01]}  h5 {[%clk 0:00:20]} 44. Ka3 {[%clk 0:00:01]}  Ra5 {[%clk 0:00:17]} 45. Rce4 {[%clk 0:00:01]}  hxg4 {[%clk 0:00:16]} 46. hxg4 {[%clk 0:00:01]}  Rc5 {[%clk 0:00:15]} 47. e6 {[%clk 0:00:02]}  fxe6 {[%clk 0:00:13]} 48. fxe6 {[%clk 0:00:03]}  Bxe6 {[%clk 0:00:07]} 49. Rxe6 {[%clk 0:00:03]}  Nxe6 {[%clk 0:00:08]} 50. Rxe6 {[%clk 0:00:04]}  Kg7 {[%clk 0:00:09]} 51. Ne4 {[%clk 0:00:03]}  Ra5 {[%clk 0:00:08]} 52. g5 {[%clk 0:00:02]}  Kf7 {[%clk 0:00:07]} 53. Rf6+ {[%clk 0:00:02]}  Kg7 {[%clk 0:00:07]} 54. Nd6 {[%clk 0:00:02]}  Rxg5 {[%clk 0:00:07]} 55. Rf7+ {[%clk 0:00:02]}  Kh6 {[%clk 0:00:07]} 56. Rf4 {[%clk 0:00:02]}  Rc5 {[%clk 0:00:07]} 57. Ne4 {[%clk 0:00:02]}  Rc4 {[%clk 0:00:05]} 58. Rg4 {[%clk 0:00:02]}  Kg7 {[%clk 0:00:04]} 59. Rf4 {[%clk 0:00:01]}  Kh6 {[%clk 0:00:04]} 60. Rh4+ {[%clk 0:00:01]}  Kg7 {[%clk 0:00:05]} 61. Rg4 {[%clk 0:00:02]}  Kh6 {[%clk 0:00:05]} 62. Kb2 {[%clk 0:00:02]}  Kg7 {[%clk 0:00:05]} 63. Nf2 {[%clk 0:00:02]}  Rxg4 {[%clk 0:00:03]} 64. Nxg4 {[%clk 0:00:03]}  g5 {[%clk 0:00:04]} 65. Ka3 {[%clk 0:00:03]}  Kg6 {[%clk 0:00:05]} 66. Kxa4 {[%clk 0:00:04]}  Kf5 {[%clk 0:00:05]} 67. Nf2 {[%clk 0:00:05]}  Kf4 {[%clk 0:00:04]} 68. Nh3+ {[%clk 0:00:05]}  Kf5 {[%clk 0:00:04]} 69. Nxg5 {[%clk 0:00:06]}  Kxg5 {[%clk 0:00:05]} 70. c4 {[%clk 0:00:07]}  Kf6 {[%clk 0:00:06]} 71. Kb5 {[%clk 0:00:08]}  Ke7 {[%clk 0:00:07]} 72. c5 {[%clk 0:00:08]}  Kd8 {[%clk 0:00:08]} 73. c6 {[%clk 0:00:09]}  Kc7 {[%clk 0:00:08]} 74. c3 {[%clk 0:00:10]}  Kc8 {[%clk 0:00:09]} 75. Kb6 {[%clk 0:00:11]}  Kb8 {[%clk 0:00:09]} 76. c7+ {[%clk 0:00:12]}  Kc8 {[%clk 0:00:10]} 77. c4 {[%clk 0:00:12]}  Kd7 {[%clk 0:00:11]} 78. Kb7 {[%clk 0:00:13]}  Ke7 {[%clk 0:00:11]} 79. c8=Q {[%clk 0:00:14]}  Kd6 {[%clk 0:00:12]} 80. c5+ {[%clk 0:00:14]}  Ke5 {[%clk 0:00:13]} 81. c6 {[%clk 0:00:14]}  Kd6 {[%clk 0:00:14]} 82. c7 {[%clk 0:00:14]}  Kc5 {[%clk 0:00:15]} 83. Qd7 {[%clk 0:00:15]}  Kb4 {[%clk 0:00:15]} 84. c8=Q {[%clk 0:00:15]}  Ka5 {[%clk 0:00:16]} 85. Qc5# {[%clk 0:00:14]} 1-0


[Site "https://www.chess.com"]

[Event "Titled Tuesday Blitz November 14 Late 2023"]
[White "Khismatullin, Denis"]
[Black "Hasangatin, Ramil"]
[WhiteFideId "4142578"]
[BlackFideId "4122160"]
[WhiteElo "2954"]
[BlackElo "2696"]
[Result "1-0"]
[Round "3"]
[TimeControl "180+1"]
[Date "2023.11.14"]
[WhiteClock "0:00:43"]
[BlackClock "0:00:11"]
[Board "14"]

1. c4 {[%clk 0:03:00]}  c6 {[%clk 0:02:59]} 2. Nf3 {[%clk 0:02:59]}  d5 {[%clk 0:02:59]} 3. e3 {[%clk 0:02:58]}  Nf6 {[%clk 0:02:58]} 4. Nc3 {[%clk 0:02:58]}  g6 {[%clk 0:02:58]} 5. d4 {[%clk 0:02:55]}  Bg7 {[%clk 0:02:59]} 6. Bd3 {[%clk 0:02:54]}  O-O {[%clk 0:02:59]} 7. O-O {[%clk 0:02:54]}  dxc4 {[%clk 0:02:59]} 8. Bxc4 {[%clk 0:02:54]}  Bg4 {[%clk 0:03:00]} 9. Be2 {[%clk 0:02:51]}  Nbd7 {[%clk 0:02:59]} 10. Qb3 {[%clk 0:02:48]}  Qb6 {[%clk 0:02:58]} 11. Rd1 {[%clk 0:02:45]}  Rad8 {[%clk 0:02:57]} 12. h3 {[%clk 0:02:43]}  Bxf3 {[%clk 0:02:51]} 13. Bxf3 {[%clk 0:02:43]}  e5 {[%clk 0:02:51]} 14. Qxb6 {[%clk 0:02:40]}  axb6 {[%clk 0:02:50]} 15. a4 {[%clk 0:02:39]}  exd4 {[%clk 0:02:48]} 16. exd4 {[%clk 0:02:38]}  Rfe8 {[%clk 0:02:40]} 17. Be3 {[%clk 0:02:38]}  Bf8 {[%clk 0:02:22]} 18. g4 {[%clk 0:02:31]}  Kg7 {[%clk 0:02:06]} 19. g5 {[%clk 0:02:27]}  Ng8 {[%clk 0:02:06]} 20. d5 {[%clk 0:02:17]}  Ne5 {[%clk 0:02:03]} 21. Bg2 {[%clk 0:02:10]}  c5 {[%clk 0:01:36]} 22. Ne4 {[%clk 0:02:09]}  Nc4 {[%clk 0:01:33]} 23. Bc1 {[%clk 0:01:44]}  Nd6 {[%clk 0:01:28]} 24. Ng3 {[%clk 0:01:42]}  Ne7 {[%clk 0:01:24]} 25. Bd2 {[%clk 0:01:41]}  Nef5 {[%clk 0:01:24]} 26. Bc3+ {[%clk 0:01:39]}  Kg8 {[%clk 0:01:24]} 27. Nxf5 {[%clk 0:01:27]}  Nxf5 {[%clk 0:01:25]} 28. d6 {[%clk 0:01:18]}  Bxd6 {[%clk 0:01:22]} 29. Bxb7 {[%clk 0:01:15]}  Bf4 {[%clk 0:01:22]} 30. Bc6 {[%clk 0:01:12]}  Rf8 {[%clk 0:01:10]} 31. Bf6 {[%clk 0:01:12]}  Rxd1+ {[%clk 0:00:50]} 32. Rxd1 {[%clk 0:01:12]}  h6 {[%clk 0:00:48]} 33. gxh6 {[%clk 0:01:07]}  Bxh6 {[%clk 0:00:49]} 34. Rd8 {[%clk 0:00:55]}  Bg7 {[%clk 0:00:46]} 35. Rxf8+ {[%clk 0:00:55]}  Kxf8 {[%clk 0:00:46]} 36. Bd8 {[%clk 0:00:55]}  Bxb2 {[%clk 0:00:23]} 37. Bxb6 {[%clk 0:00:55]}  c4 {[%clk 0:00:24]} 38. a5 {[%clk 0:00:51]}  c3 {[%clk 0:00:23]} 39. Ba4 {[%clk 0:00:46]}  c2 {[%clk 0:00:13]} 40. Bxc2 {[%clk 0:00:45]}  Nd4 {[%clk 0:00:11]} 41. a6 {[%clk 0:00:43]} 1-0


[Site "https://www.chess.com"]

[Event "Titled Tuesday Blitz November 14 Late 2023"]
[White "Bortnyk, Mykola"]
[Black "Bjelobrk, Igor"]
[WhiteFideId "14120836"]
[BlackFideId "4300726"]
[WhiteElo "2944"]
[BlackElo "2675"]
[Result "1-0"]
[Round "3"]
[TimeControl "180+1"]
[Date "2023.11.14"]
[WhiteClock "0:00:05"]
[BlackClock "0:00:07"]
[Board "16"]

1. e4 {[%clk 0:03:00]}  e6 {[%clk 0:02:58]} 2. Qe2 {[%clk 0:02:58]}  c5 {[%clk 0:02:52]} 3. b3 {[%clk 0:02:58]}  b6 {[%clk 0:02:51]} 4. Bb2 {[%clk 0:02:58]}  Bb7 {[%clk 0:02:51]} 5. g3 {[%clk 0:02:54]}  d6 {[%clk 0:02:52]} 6. Bg2 {[%clk 0:02:55]}  a6 {[%clk 0:02:52]} 7. Nf3 {[%clk 0:02:53]}  Nd7 {[%clk 0:02:51]} 8. d4 {[%clk 0:02:52]}  cxd4 {[%clk 0:02:50]} 9. Nxd4 {[%clk 0:02:53]}  Qc7 {[%clk 0:02:47]} 10. c4 {[%clk 0:02:50]}  Ngf6 {[%clk 0:02:46]} 11. O-O {[%clk 0:02:49]}  g6 {[%clk 0:02:45]} 12. Nd2 {[%clk 0:02:30]}  Bg7 {[%clk 0:02:44]} 13. Rab1 {[%clk 0:02:28]}  O-O {[%clk 0:02:44]} 14. Kh1 {[%clk 0:02:28]}  Rfe8 {[%clk 0:02:44]} 15. Rbc1 {[%clk 0:02:15]}  Rac8 {[%clk 0:02:39]} 16. Rfd1 {[%clk 0:02:14]}  Qb8 {[%clk 0:02:39]} 17. Ba3 {[%clk 0:02:06]}  Nc5 {[%clk 0:02:38]} 18. f3 {[%clk 0:02:00]}  h5 {[%clk 0:02:37]} 19. Nf1 {[%clk 0:01:58]}  h4 {[%clk 0:02:36]} 20. Nc2 {[%clk 0:01:49]}  Nh5 {[%clk 0:02:33]} 21. Qf2 {[%clk 0:01:45]}  d5 {[%clk 0:02:28]} 22. cxd5 {[%clk 0:01:41]}  exd5 {[%clk 0:02:28]} 23. exd5 {[%clk 0:01:39]}  Rcd8 {[%clk 0:02:24]} 24. Nce3 {[%clk 0:01:24]}  Bh6 {[%clk 0:02:04]} 25. Rc3 {[%clk 0:01:18]}  a5 {[%clk 0:01:42]} 26. Bxc5 {[%clk 0:01:09]}  bxc5 {[%clk 0:01:42]} 27. Ng4 {[%clk 0:01:01]}  Bg7 {[%clk 0:01:37]} 28. Rxc5 {[%clk 0:00:57]}  hxg3 {[%clk 0:01:32]} 29. hxg3 {[%clk 0:00:56]}  Ba6 {[%clk 0:01:28]} 30. f4 {[%clk 0:00:52]}  Bxf1 {[%clk 0:01:24]} 31. Rxf1 {[%clk 0:00:48]}  Qb6 {[%clk 0:01:14]} 32. Kh2 {[%clk 0:00:34]}  Re2 {[%clk 0:00:52]} 33. Qxe2 {[%clk 0:00:30]}  Qxc5 {[%clk 0:00:52]} 34. Qe3 {[%clk 0:00:26]}  Bd4 {[%clk 0:00:48]} 35. Qd3 {[%clk 0:00:24]}  Kg7 {[%clk 0:00:47]} 36. Rd1 {[%clk 0:00:20]}  Bb2 {[%clk 0:00:38]} 37. Rd2 {[%clk 0:00:20]}  Nf6 {[%clk 0:00:37]} 38. Nxf6 {[%clk 0:00:14]}  Rh8+ {[%clk 0:00:35]} 39. Bh3 {[%clk 0:00:15]}  Bxf6 {[%clk 0:00:35]} 40. d6 {[%clk 0:00:14]}  Qh5 {[%clk 0:00:30]} 41. Qf1 {[%clk 0:00:14]}  Qg4 {[%clk 0:00:20]} 42. d7 {[%clk 0:00:12]}  Bd8 {[%clk 0:00:17]} 43. Qg2 {[%clk 0:00:08]}  Rh5 {[%clk 0:00:15]} 44. a3 {[%clk 0:00:08]}  Kh7 {[%clk 0:00:14]} 45. b4 {[%clk 0:00:08]}  axb4 {[%clk 0:00:14]} 46. axb4 {[%clk 0:00:09]}  Qf5 {[%clk 0:00:13]} 47. Qf1 {[%clk 0:00:04]}  Kg8 {[%clk 0:00:13]} 48. Re2 {[%clk 0:00:02]}  Qxd7 {[%clk 0:00:12]} 49. Qg2 {[%clk 0:00:03]}  Kh7 {[%clk 0:00:11]} 50. Rd2 {[%clk 0:00:02]}  Qe7 {[%clk 0:00:10]} 51. Rb2 {[%clk 0:00:01]}  Bb6 {[%clk 0:00:10]} 52. b5 {[%clk 0:00:01]}  Qe3 {[%clk 0:00:10]} 53. g4 {[%clk 0:00:02]}  Rh6 {[%clk 0:00:10]} 54. Re2 {[%clk 0:00:02]}  Qxf4+ {[%clk 0:00:10]} 55. Qg3 {[%clk 0:00:02]}  Qc1 {[%clk 0:00:09]} 56. g5 {[%clk 0:00:02]}  Bc7 {[%clk 0:00:09]} 57. gxh6 {[%clk 0:00:01]}  Bxg3+ {[%clk 0:00:09]} 58. Kxg3 {[%clk 0:00:02]}  Qc7+ {[%clk 0:00:10]} 59. Kg2 {[%clk 0:00:03]}  f5 {[%clk 0:00:09]} 60. Kg1 {[%clk 0:00:02]}  Qc1+ {[%clk 0:00:09]} 61. Kh2 {[%clk 0:00:03]}  Qc7+ {[%clk 0:00:09]} 62. Kh1 {[%clk 0:00:03]}  Kxh6 {[%clk 0:00:10]} 63. Bg2 {[%clk 0:00:03]}  Qb6 {[%clk 0:00:09]} 64. Bc6 {[%clk 0:00:03]}  g5 {[%clk 0:00:10]} 65. Re6+ {[%clk 0:00:04]}  Kh5 {[%clk 0:00:10]} 66. Be8+ {[%clk 0:00:04]}  Kg4 {[%clk 0:00:07]} 67. Rxb6 {[%clk 0:00:05]} 1-0


[Site "https://www.chess.com"]

[Event "Titled Tuesday Blitz November 14 Late 2023"]
[White "Hong, Andrew"]
[Black "Sivakumar, Shaaketh"]
[WhiteFideId "2099438"]
[BlackFideId "30940176"]
[WhiteElo "2919"]
[BlackElo "2651"]
[Result "1-0"]
[Round "3"]
[TimeControl "180+1"]
[Date "2023.11.14"]
[WhiteClock "0:01:17"]
[BlackClock "0:01:21"]
[Board "20"]

1. d4 {[%clk 0:02:54]}  e6 {[%clk 0:03:00]} 2. c4 {[%clk 0:02:53]}  b6 {[%clk 0:03:00]} 3. g3 {[%clk 0:02:52]}  Bb7 {[%clk 0:03:00]} 4. Nf3 {[%clk 0:02:52]}  Bb4+ {[%clk 0:03:00]} 5. Nbd2 {[%clk 0:02:51]}  f5 {[%clk 0:03:00]} 6. Bg2 {[%clk 0:02:50]}  Nf6 {[%clk 0:03:00]} 7. O-O {[%clk 0:02:50]}  O-O {[%clk 0:03:01]} 8. Qc2 {[%clk 0:02:46]}  Ne4 {[%clk 0:02:57]} 9. Ne5 {[%clk 0:02:39]}  Bxd2 {[%clk 0:02:55]} 10. Bxd2 {[%clk 0:02:39]}  d6 {[%clk 0:02:56]} 11. Nd3 {[%clk 0:02:38]}  Nd7 {[%clk 0:02:56]} 12. Be1 {[%clk 0:02:36]}  c5 {[%clk 0:02:54]} 13. Nf4 {[%clk 0:02:30]}  Qe7 {[%clk 0:02:52]} 14. d5 {[%clk 0:02:29]}  exd5 {[%clk 0:02:47]} 15. Nxd5 {[%clk 0:02:27]}  Qe5 {[%clk 0:02:29]} 16. Rd1 {[%clk 0:01:57]}  Rae8 {[%clk 0:02:14]} 17. e3 {[%clk 0:01:46]}  Ndf6 {[%clk 0:02:05]} 18. Nc7 {[%clk 0:01:33]}  Re7 {[%clk 0:01:59]} 19. f4 {[%clk 0:01:32]}  Ng4 {[%clk 0:01:46]} 20. fxe5 {[%clk 0:01:30]}  Nxe3 {[%clk 0:01:47]} 21. Qc1 {[%clk 0:01:22]}  Nxd1 {[%clk 0:01:21]} 22. exd6 {[%clk 0:01:17]} 1-0


[Site "https://www.chess.com"]

[Event "Titled Tuesday Blitz November 14 Late 2023"]
[White "Yeletsky, Ivan"]
[Black "reevecanada"]
[WhiteFideId "24180327"]
[WhiteElo "2912"]
[BlackElo "2650"]
[Result "1-0"]
[Round "3"]
[TimeControl "180+1"]
[Date "2023.11.14"]
[WhiteClock "0:00:05"]
[BlackClock "0:00:14"]
[Board "21"]

1. e4 {[%clk 0:03:00]}  c5 {[%clk 0:02:41]} 2. a4 {[%clk 0:03:00]}  Nc6 {[%clk 0:02:29]} 3. Bb5 {[%clk 0:02:59]}  Nd4 {[%clk 0:02:28]} 4. c3 {[%clk 0:02:59]}  Nxb5 {[%clk 0:02:28]} 5. axb5 {[%clk 0:03:00]}  d6 {[%clk 0:02:28]} 6. d4 {[%clk 0:02:58]}  cxd4 {[%clk 0:02:28]} 7. cxd4 {[%clk 0:02:49]}  Bd7 {[%clk 0:02:27]} 8. Nc3 {[%clk 0:02:48]}  g6 {[%clk 0:02:27]} 9. h4 {[%clk 0:02:44]}  h5 {[%clk 0:02:25]} 10. Nge2 {[%clk 0:02:28]}  Bg7 {[%clk 0:02:25]} 11. f3 {[%clk 0:02:28]}  e5 {[%clk 0:02:20]} 12. dxe5 {[%clk 0:02:24]}  dxe5 {[%clk 0:02:21]} 13. Bg5 {[%clk 0:02:23]}  Bf6 {[%clk 0:02:14]} 14. Qd2 {[%clk 0:02:16]}  Bxg5 {[%clk 0:02:13]} 15. hxg5 {[%clk 0:02:16]}  Ne7 {[%clk 0:02:03]} 16. Qd6 {[%clk 0:02:13]}  Qb8 {[%clk 0:01:57]} 17. Qf6 {[%clk 0:02:09]}  Rh7 {[%clk 0:01:56]} 18. O-O-O {[%clk 0:01:54]}  Be6 {[%clk 0:01:47]} 19. f4 {[%clk 0:01:54]}  exf4 {[%clk 0:01:41]} 20. Qxf4 {[%clk 0:01:34]}  Bg4 {[%clk 0:01:26]} 21. Qxg4 {[%clk 0:01:19]}  hxg4 {[%clk 0:01:24]} 22. Rxh7 {[%clk 0:01:20]}  Qe5 {[%clk 0:01:23]} 23. Kb1 {[%clk 0:01:05]}  a6 {[%clk 0:00:37]} 24. b6 {[%clk 0:00:54]}  Ng8 {[%clk 0:00:33]} 25. Rd5 {[%clk 0:00:39]}  Qe6 {[%clk 0:00:30]} 26. Nf4 {[%clk 0:00:20]}  Qxb6 {[%clk 0:00:29]} 27. Rh8 {[%clk 0:00:07]}  Kf8 {[%clk 0:00:27]} 28. Rh7 {[%clk 0:00:05]}  Rd8 {[%clk 0:00:24]} 29. e5 {[%clk 0:00:05]}  Re8 {[%clk 0:00:18]} 30. e6 {[%clk 0:00:05]}  Rxe6 {[%clk 0:00:16]} 31. Nxe6+ {[%clk 0:00:05]}  Qxe6 {[%clk 0:00:17]} 32. Rd8+ {[%clk 0:00:06]}  Ke7 {[%clk 0:00:17]} 33. Rxg8 {[%clk 0:00:06]}  Qf5+ {[%clk 0:00:18]} 34. Ka2 {[%clk 0:00:06]}  Qa5+ {[%clk 0:00:18]} 35. Kb1 {[%clk 0:00:06]}  Qf5+ {[%clk 0:00:18]} 36. Kc1 {[%clk 0:00:05]}  Qxg5+ {[%clk 0:00:18]} 37. Kc2 {[%clk 0:00:06]}  Qf5+ {[%clk 0:00:18]} 38. Kb3 {[%clk 0:00:05]}  Qe6+ {[%clk 0:00:18]} 39. Ka3 {[%clk 0:00:06]}  Qd6+ {[%clk 0:00:18]} 40. Ka2 {[%clk 0:00:07]}  Qf6 {[%clk 0:00:18]} 41. Rgg7 {[%clk 0:00:06]}  Qe6+ {[%clk 0:00:18]} 42. b3 {[%clk 0:00:06]}  Qe3 {[%clk 0:00:14]} 43. Nd5+ {[%clk 0:00:05]} 1-0


[Site "https://www.chess.com"]

[Event "Titled Tuesday Blitz November 14 Late 2023"]
[White "Zhigalko, Sergei"]
[Black "Ahmad, Khagan"]
[WhiteFideId "13502956"]
[BlackFideId "13431552"]
[WhiteElo "2895"]
[BlackElo "2643"]
[Result "1-0"]
[Round "3"]
[TimeControl "180+1"]
[Date "2023.11.14"]
[WhiteClock "0:02:54"]
[BlackClock "0:02:04"]
[Board "22"]

1. e4 {[%clk 0:03:00]}  c5 {[%clk 0:02:59]} 2. Nf3 {[%clk 0:03:00]}  d6 {[%clk 0:03:00]} 3. d4 {[%clk 0:03:01]}  cxd4 {[%clk 0:03:00]} 4. Qxd4 {[%clk 0:03:01]}  Nc6 {[%clk 0:02:59]} 5. Bb5 {[%clk 0:03:00]}  Bd7 {[%clk 0:03:00]} 6. Bxc6 {[%clk 0:03:01]}  Bxc6 {[%clk 0:03:00]} 7. Nc3 {[%clk 0:03:01]}  Nf6 {[%clk 0:03:00]} 8. Bg5 {[%clk 0:03:01]}  e6 {[%clk 0:03:01]} 9. O-O-O {[%clk 0:03:01]}  Be7 {[%clk 0:03:01]} 10. Rhe1 {[%clk 0:03:01]}  O-O {[%clk 0:02:57]} 11. Kb1 {[%clk 0:03:01]}  Qa5 {[%clk 0:02:49]} 12. Qd2 {[%clk 0:03:00]}  Rfd8 {[%clk 0:02:45]} 13. Nd4 {[%clk 0:02:57]}  h6 {[%clk 0:02:38]} 14. Nd5 {[%clk 0:02:57]}  Nxd5 {[%clk 0:02:04]} 15. Qxa5 {[%clk 0:02:54]} 1-0


[Site "https://www.chess.com"]